Workbook

Sheet Sheet1
B1: Current
A2: Unit | B2: 112B | C2: 213 | D2: 302 | E2: 305
A3: Size (sqft) | B3: 2336 | C3: 2559 | D3: 1804 | E3: 715
A4: Lease expiration
A5: Assessed Value | B5: 225000 | E5: 60000
A6: Price | B6: 200000 | C6: 200000 | D6: 200000 | E6: 100000
A7: Monthly Rent | B7: 4000 | C7: =2500+2000 -> 4500 | D7: 3500 | E7: 1534
A8: Yearly Rent | B8: =B7*12 -> 48000 | C8: =C7*12 -> 54000 | D8: =D7*12 -> 42000 | E8: =E7*12 -> 18408
A9: Scheduled Cleaning | B9: 0 | C9: 0 | D9: 350 | E9: 0
A10: Yrly Condo Fee | B10: =2434.05*12 -> 29208.6 | C10: =2666.75*12 -> 32001 | D10: =1880.05*12 -> 22560.6 | E10: =746.05*12 -> 8952.6
A11: Property Tax | B11: 4860 | C11: 4696.56 | D11: 2965 | E11: 1296.2
A12: NOI | B12: =B8-B10-B11 -> 13931.4 | C12: =C8-C10-C11 -> 17302.44 | D12: =D8-D9-D10-D11 -> 16124.4 | E12: 8159.2
A13: Cap Rate | B13: =B12/B6 -> 0.069657 | C13: =C12/C6 -> 0.0865122 | D13: 0.080622 | E13: 0.081592
B19: Total Units
A20: Size (sqft) | B20: =SUM(B3:F3) -> 7414
A21: Price | B21: =SUM(B6:F6) -> 700000
A22: Yearly Rent | B22: =SUM(B8:F8) -> 162408
A23: Condo Fee | B23: =SUM(B10:F10) -> 92722.8
A24: Property Tax | B24: =SUM(B11:F11) -> 13817.76
A25: NOI | B25: =SUM(B12:F12) -> 55517.44
A26: Cap Rate | B26: =B25/B21 -> 0.07931062857
